Cogmind - Beta 17 @@@ ROGUE MODE // 2026.07.18 @ 23:36:06 Player: Momo Result: Destroyed by K2-79Z(j) with Overtuned Pulse Rifle Performance ------------- Evolutions (0) 0 Regions Visited (4) 800 Robots Destroyed (37) 185 Value Destroyed (1263) 1263 Prototype IDs (36) 720 Alien Tech Used (0) 0 Bonus (800) 800 TOTAL SCORE: 3768 Bonus ------- Registered with UFD 300 Met Optimus in HQ 500 Cogmind --------- Core Integrity 0/250 Matter 300/300 Energy 303/310 System Corruption 0% Temperature Cool (17) Movement Walking (180) Ox1 Location -8/Scraptown Parts ------- > --- POWER (1) -------- Heavy Deuterium Engine (fused) > --- PROPULSION (2) --- Overtuned Titanium Leg Enhanced Armored Leg (fused) > --- UTILITY (2) ------ Large Storage Unit Self-contained Transmogrifier > --- WEAPON (2) ------- Phase Cannon (fused) Advanced Plasma Cannon (fused) > --- INVENTORY (15) --- Scrap Suit Medium Storage Unit High-capacity Matter Pod (200) Improved Sensor Array Experimental Signal Interpreter IFF Parser IFF Parser Particle Charger Hardened Light Armor Plating Gun Armor Flak Cannon Improved Grenade Launcher Multitool Peak State ------------ > --- POWER ------------ Heavy Antimatter Reactor > --- PROPULSION ------- Cesium-ion Thruster Field Propulsion Drive > --- UTILITY ---------- Large Storage Unit Self-contained Transmogrifier > --- WEAPON ----------- Improved KE Penetrator Improved KE Penetrator > --- INVENTORY -------- Improved Ion Engine Scrap Suit Medium Storage Unit High-capacity Matter Pod Improved Sensor Array IFF Parser IFF Parser Particle Charger Hardened Light Armor Plating Gun Armor Flak Cannon Improved Grenade Launcher Multitool [Rating: 45] Favorites ----------- Power Ion Engine Engine Ion Engine Power Core Enhanced Fission Core Reactor Heavy Antimatter Reactor Propulsion Improved Aluminum Leg Treads Light Treads Leg Improved Aluminum Leg Wheel Compact Wheel Flight Unit Field Propulsion Drive Utility Self-contained Transmogrifier Device Self-contained Transmogrifier Storage Medium Storage Unit Processor Improved Signal Interpreter Protection Hardened Light Armor Plating Weapon Autogun Energy Gun Heavy Riot Gun Energy Cannon Ion Cannon Ballistic Gun Autogun Ballistic Cannon Flak Cannon Launcher Improved Grenade Launcher Build | -11 -10 -10 -10 -8 ------- Run | Yrd Mat Min Sub Scr Slots Evolved . | . . . . . Power . | . . . . . Propulsion . | . . . . . Utility . | . . . . . Weapon . | . . . . . Parts Attached 38 | 5 11 5 10 7 Power 5 | 1 1 1 1 1 Engine 4 | 1 . 1 1 1 Core 1 | . 1 . . . Reactor . | . . . . . Propulsion 10 | 2 2 1 2 3 Treads 2 | 2 . . . . Leg 5 | . 2 . 1 2 Wheel 2 | . . 1 1 . Hover . | . . . . . Flight 1 | . . . . 1 Utility 10 | . 5 2 2 1 Device 2 | . 1 . 1 . Storage 2 | . 1 . . 1 Processor 1 | . . . 1 . Hackware . | . . . . . Protection 5 | . 3 2 . . Artifact . | . . . . . Weapon 13 | 2 3 1 5 2 Energy Gun 1 | . . . 1 . Energy Cannon 3 | . 2 . 1 . Ballistic Gun 6 | 2 1 1 1 1 Ballistic Cannon 2 | . . . 1 1 Launcher 1 | . . . 1 . Special Weapon . | . . . . . Impact Weapon . | . . . . . Slashing Weapon . | . . . . . Piercing Weapon . | . . . . . Special Melee Weapon . | . . . . . Unidentified Prototypes 2 | . 1 . 1 . Parts Lost 4 | . . . 3 1 Power 1 | . . . 1 . Propulsion 2 | . . . 1 1 Utility . | . . . . . Weapon 1 | . . . 1 . Highest Loss Streak 1 | . . . 1 1 To Critical Strikes . | . . . . . Average Backups 10 | 1 8 9 8 12 Power . | . 1 . . . Propulsion . | . 1 . . . Utility 6 | . 3 3 4 8 Weapon 2 | . 1 4 3 2 Tool/Special . | . . . . . Unused Backups 19 | . 6 3 . 10 Power 3 | . 2 . . 1 Propulsion 2 | . 2 . . . Utility 11 | . 2 1 . 8 Weapon 2 | . . 2 . . Tool/Special 1 | . . . . 1 Average Slot Usage (%) 96 | . 94 100 91 99 Engine 6 | . 12 12 7 2 Core 2 | . 1 1 . 5 Reactor 2 | . . . . 6 Treads 3 | . 24 . . . Leg 12 | . 3 26 22 4 Wheel 2 | . . 1 4 3 Flight 9 | . . . . 20 Device 7 | . . . 4 14 Storage 13 | . 10 14 13 14 Protection 6 | . 11 14 9 . Energy Cannon 6 | . 12 1 7 5 Ballistic Gun 16 | . 15 26 7 21 Ballistic Cannon 2 | . . . 5 . Launcher 2 | . . . 7 . Peak Build Rating 45 | 5 17 17 27 45 Average Rating 26 | 4 10 14 19 40 On Entrance 12 | . 5 16 14 25 Avg Prop Armor Cover (%) 5 | . . 6 8 3 Naked Turns . | . . . . . Heaviest Build 50 | 8 28 26 32 50 Greatest Support 40 | 40 40 26 33 39 Greatest Overweight (x) 4 | . 2 2 2 4 Average Overweight (x) 1 | . . . . 2 Largest Inventory Capacity 15 | 5 10 10 10 15 Average Capacity 11 | 5 8 10 9 14 Most Carried 14 | 3 10 10 10 14 Average Carried 11 | 1 8 9 9 13 Final Capacity 15 | 5 10 10 10 15 Final Carried 14 | 3 10 10 9 14 Transmogrified Parts 33 | . . . 2 31 Integrity Recovered 328 | . . . 24 304 Class Distribution -------------------- 100% | Mutant Dominant Class ---------------- Mutant | -10/Materials Mutant | -10/Mines Mutant | -10/Subcaves Mutant | -8/Scraptown Resources | -11 -10 -10 -10 -8 ----------- Run | Yrd Mat Min Sub Scr Matter Collected 1669 | 246 278 385 606 154 Remotely . | . . . . . Salvage Created 1229 | . 336 391 417 85 Parts 79 | . 21 19 39 . Haulers Intercepted . | . . . . . Recyclers Shooed . | . . . . . Parts Field Recycled . | . . . . . Retrieved Matter . | . . . . . Parts Self-Destructed 5 | . . . 5 . Prevented . | . . . . . Parts Restored . | . . . . . Kills | -11 -10 -10 -10 -8 ------- Run | Yrd Mat Min Sub Scr Combat Hostiles Destroyed 33 | . 7 8 17 1 Guns 16 | . 7 8 1 . Cannons 6 | . . . 5 1 AOE 10 | . . . 10 . Classes Destroyed 9 | . 2 1 5 1 Tunneler 1 | . . 1 . . Turret 2 | . . . 2 . Watcher 1 | . 1 . . . Swarmer 3 | . . . 3 . Grunt 15 | . 7 8 . . Sentry 1 | . . . 1 . Artisan 1 | . . . 1 . Subdweller 13 | . . . 13 . Bolteater 1 | . . . . 1 Best Kill Streak 5 | . 3 2 5 1 Combat Bots Only 3 | . 3 2 3 1 Max Kills in Single Turn 2 | . 1 1 2 1 Gunslinging . | . . . . . Exploded 2 | . . . 2 . Melee . | . . . . . Uniques/NPCs Destroyed . | . . . . . Combat | -11 -10 -10 -10 -8 -------- Run | Yrd Mat Min Sub Scr Hostile Shots Fired 132 | . 34 41 44 13 Missed 39 | . 10 10 16 3 Hits 93 | . 24 31 28 10 Melee 5 | . . . . 5 Projectile 88 | . 24 31 28 5 Critical Strikes 3 | . . 2 1 . Damage Taken 1463 | . 284 438 598 143 Core 260 | . 30 45 161 24 Absorbed by Shields . | . . . . . Redirected to Shielding 6 | . 6 . . . Core Remaining (%) 100 | 100 . . . . Volleys Fired 116 | . 27 35 52 2 Largest 2 | . 2 2 2 2 Hottest 128 | . 91 91 120 128 Shots Fired 200 | . 53 70 73 4 Gun 130 | . 50 69 9 2 Cannon 52 | . 3 1 46 2 Launcher 18 | . . . 18 . Special . | . . . . . Kinetic 145 | . 50 69 24 2 Thermal 33 | . 3 1 27 2 Explosive 18 | . . . 18 . Electromagnetic 4 | . . . 4 . Robot Hit Streak 16 | . 11 8 16 1 Robot Miss Streak 3 | . 1 2 3 2 Penetration Max . | . . . . . Secondary Targets 1 | . 1 . . . Max Gunslinging Chain 1 | . 1 . . . Shots Hit Robots 135 | . 39 44 51 1 Core Hits 70 | . 14 16 39 1 Critical Kills 2 | . . 1 1 . Critical Parts Destroyed . | . . . . . Critical Strikes 2 | . . 1 1 . Meltdown 1 | . . . 1 . Destroy 1 | . . 1 . . Melee Attacks . | . . . . . Impact . | . . . . . Slashing . | . . . . . Piercing . | . . . . . Sneak Attacks . | . . . . . Combat Hostiles . | . . . . . Follow-up Attacks . | . . . . . Damage Inflicted 3238 | . 456 678 2078 26 Guns 1153 | . 410 678 65 . Cannons 627 | . 46 . 555 26 Explosions 1458 | . . . 1458 . Melee . | . . . . . Ramming . | . . . . . Kinetic 1376 | . 410 678 288 . Thermal 371 | . 46 . 299 26 Explosive 1458 | . . . 1458 . Electromagnetic 33 | . . . 33 . Impact . | . . . . . Slashing . | . . . . . Piercing . | . . . . . Highest Corruption . | . . . . . Average Corruption . | . . . . . Corruption Purged . | . . . . . Corruption Blocked . | . . . . . Overload Shots . | . . . . . Overflow Damage . | . . . . . Projectiles . | . . . . . Explosions . | . . . . . Melee . | . . . . . Knockbacks 11 | . . . 11 . Impact . | . . . . . Kinetic 11 | . . . 11 . Secondary . | . . . . . Self-Inflicted Damage 72 | . . . 72 . Shots 2 | . . . 2 . Rammed . | . . . . . Targets Rammed . | . . . . . Kicked . | . . . . . Crushed . | . . . . . Highest Temperature 195 | . 72 195 1 144 Average Temperature 54 | . 18 61 1 74 Received Heat Transfer 609 | . 156 291 114 48 Siege Activations . | . . . . . Martial Activations . | . . . . . Shielding Activations . | . . . . . Robots Disrupted . | . . . . . Combat Hostiles . | . . . . . Robots Corrupted . | . . . . . Combat Hostiles . | . . . . . Parts Fried . | . . . . . Impact Corruptions . | . . . . . Robots Melted 1 | . . . 1 . Combat Hostiles 1 | . . . 1 . Parts Melted 3 | . . . 3 . Heat Transferred 605 | . 74 . 481 50 Parts Sabotaged . | . . . . . Parts Stolen . | . . . . . Parts Stripped . | . . . . . Power Chain Reactions . | . . . . . Alert | -11 -10 -10 -10 -8 ------- Run | Yrd Mat Min Sub Scr Maximum Alert Level . | . . . . . Low Security (%) 100 | 100 100 100 . . Level 1 . | . . . . . Level 2 . | . . . . . Level 3 . | . . . . . Level 4 . | . . . . . Level 5 . | . . . . . High Security . | . . . . . Max Security . | . . . . . Peak Influence 115 | . 115 52 . . Initial 12 | . . 12 . . Average 23 | . 30 17 . . Influence Increases 628 | . 243 205 180 . Destroy 0b10 Robot/C 420 | . 140 160 120 . Destroy 0b10 Robot/NC 10 | . 5 5 . . Destroy Leader 72 | . 32 40 . . Successful Hack 21 | . 21 . . . Lose Combat Pursuer 105 | . 45 . 60 . Influence Decreases 628 | . 211 237 180 . Entered New Map 20 | . . 20 . . Time Decay 598 | . 211 217 170 . Lost Part 10 | . . . 10 . Squads Dispatched 3 | . 2 1 . . Investigation 3 | . 2 1 . . Extermination . | . . . . . Reinforcement . | . . . . . Assault . | . . . . . Garrison . | . . . . . Intercept . | . . . . . Searches Triggered . | . . . . . Construction Impeded . | . . . . . Haulers Reinforced . | . . . . . Active Scanning Responses . | . . . . . Cargo Convoy Interrupts . | . . . . . Stealth | -11 -10 -10 -10 -8 --------- Run | Yrd Mat Min Sub Scr Distress Signals . | . . . . . Communications Jammed . | . . . . . Distress Signals . | . . . . . Times Spotted 52 | . 9 10 24 9 Peak Tracking Total 6 | . 3 2 4 6 Tactical Retreats 2 | . 1 . 1 . Traps | -11 -10 -10 -10 -8 ------- Run | Yrd Mat Min Sub Scr Traps Triggered 2 | . 1 . 1 . Indirectly . | . . . . . Trap Hack Attempts . | . . . . . Triggered . | . . . . . Disarmed . | . . . . . Reprogrammed . | . . . . . Reused 1 | . . . 1 . Traps Extracted . | . . . . . Installed 1 | . . . 1 . Triggered . | . . . . . Machines | -11 -10 -10 -10 -8 ---------- Run | Yrd Mat Min Sub Scr Machines Disabled 8 | . . . 5 3 Max in Single Turn 2 | . . . 2 2 Machines Repaired . | . . . . . Machines Dismantled . | . . . . . Machines Sabotaged . | . . . . . Overloaded Fab Kills . | . . . . . Hacking | -11 -10 -10 -10 -8 --------- Run | Yrd Mat Min Sub Scr Machines Accessed 17 | . 5 1 2 9 Terminals 5 | . 5 . . . Fabricators . | . . . . . Repair Stations . | . . . . . Recycling Units . | . . . . . Scanalyzers . | . . . . . Garrison Access . | . . . . . Total Hacks 99 | . 19 1 12 67 Successful 91 | . 11 1 12 67 Failed 8 | . 8 . . . Catastrophic 1 | . 1 . . . Database Lockouts . | . . . . . Manual 17 | . 17 . . . Terminals 19 | . 19 . . . Fabricators . | . . . . . Repair Stations . | . . . . . Recycling Units . | . . . . . Scanalyzers . | . . . . . Garrison Access . | . . . . . Terminal Hacks 88 | . 8 1 12 67 Record 72 | . 1 . 11 60 Robot Analysis 9 | . 2 . . 7 Prototype ID Bank 4 | . 4 . . . Open Door 1 | . . 1 . . Emergency Access Points 1 | . 1 . . . Proto ID Catalog 1 | . . . 1 . Fabricator Hacks . | . . . . . Repair Station Hacks . | . . . . . Recycling Unit Hacks . | . . . . . Scanalyzer . | . . . . . Garrison Access Hacks . | . . . . . Unauthorized Hacks 3 | . 3 . . . Terminals 3 | . 3 . . . Botnet 3 | . 3 . . . Fabricators . | . . . . . Repair Stations . | . . . . . Recycling Units . | . . . . . Scanalyzers . | . . . . . Garrison Access . | . . . . . Data Cores Recovered . | . . . . . Used . | . . . . . Hacking Detections 5 | . 5 . . . Full Trace Events 1 | . 1 . . . Feedback Events . | . . . . . Feedback Blocked . | . . . . . Robot Schematics Acquired . | . . . . . Robots Built . | . . . . . Authchips . | . . . . . Time . | . . . . . Total Robot Build Rating . | . . . . . Part Schematics Acquired . | . . . . . Parts Built . | . . . . . Authchips . | . . . . . Time . | . . . . . Total Part Build Rating . | . . . . . Part Studies Acquired . | . . . . . Parts Repaired . | . . . . . Time . | . . . . . Parts Recycled . | . . . . . Recycled Matter . | . . . . . Retrieved Matter . | . . . . . Retrieved Components . | . . . . . Parts Scanalyzed . | . . . . . Part Schematics Acquired . | . . . . . Parts Damaged . | . . . . . Bothacking | -11 -10 -10 -10 -8 ------------ Run | Yrd Mat Min Sub Scr Used RIF Installer . | . . . . . Robots Hacked . | . . . . . Non-combat . | . . . . . Combat . | . . . . . Robot Hacks Applied . | . . . . . Relay Couplers Released . | . . . . . Fabnet Peak Effective % . | . . . . . Robots Rewired . | . . . . . Allies Hacked . | . . . . . Hacks Repelled . | . . . . . Allies | -11 -10 -10 -10 -8 -------- Run | Yrd Mat Min Sub Scr Total Allies . | . . . . . Largest Group . | . . . . . Highest-Rated Group . | . . . . . Highest-Rated Ally . | . . . . . Total Orders . | . . . . . Ally Attacks . | . . . . . Total Damage . | . . . . . Kills . | . . . . . Allies Corrupted . | . . . . . Allies Melted 6 | . . . . 6 Intel | -11 -10 -10 -10 -8 ------- Run | Yrd Mat Min Sub Scr Active Infowar (turns) 41 | . 41 . . . Terrain 41 | . 41 . . . Robot Analysis Total 9 | . 2 . . 7 Derelict Logs Recovered 2 | . . 2 . . Drone Launches . | . . . . . Drone Recoveries . | . . . . . Exploration | -11 -10 -10 -10 -8 ------------- Run | Yrd Mat Min Sub Scr Turns Passed 7104 | 74 915 681 2299 3135 Spaces Moved 4069 | 46 514 449 1616 1444 Core 8 | 8 . . . . Treads 478 | 38 440 . . . Legs 1925 | . 74 398 1070 383 Wheels 1103 | . . 51 546 506 Hover . | . . . . . Flight 555 | . . . . 555 Fastest Speed 50 | 50 120 110 100 115 Average Speed 161 | 140 154 118 128 214 Slowest Speed 357 | 160 260 120 260 357 Overloaded Moves . | . . . . . Propulsion Burnouts . | . . . . . Robots Hopped . | . . . . . Potential Cave-ins . | . . . . . Cave-ins Triggered . | . . . . . Exploration Rate (%) 62 | 3 64 92 69 86 Regions Visited 4 Branch Regions 3 Pre-discovered Areas 2 | . . 1 . 1 Known Exits Taken 1 | . . . 1 . Unknown Exits Taken 3 | 1 1 1 . . Scrap Searched 13 | . . 1 3 9 Spaces Dug . | . . . . . Terrain Destroyed 114 | . . . 113 1 Melee . | . . . . . Projectile 1 | . . . . 1 AOE 113 | . . . 113 . Terrain Rammed . | . . . . . Walls Destroyed . | . . . . . Machines Disabled . | . . . . . Actions | -11 -10 -10 -10 -8 --------- Run | Yrd Mat Min Sub Scr Total 4418 | 53 587 542 1760 1476 Wait 121 | . 6 37 65 13 Move 4065 | 45 513 448 1615 1444 Hop . | . . . . . Pick Up 38 | 3 15 8 7 5 Fast Attach 23 | 5 8 . 5 5 Attach 1 | . . . 1 . Detach 1 | . . . 1 . Swap 19 | . 4 5 8 2 Drop 33 | . 14 9 5 5 Fire 116 | . 27 35 52 2 Melee . | . . . . . Ram . | . . . . . Kick . | . . . . . Crush . | . . . . . Escape Stasis . | . . . . . Rewire . | . . . . . Trap 1 | . . . 1 . Miscellaneous . | . . . . . Route ------- -11/Scrapyard -10/Materials (discovered 4 exits: [*Mat x2] / *Min / *Sub) -10/Mines (discovered 4 exits: [*Mat x2] / [*Exi] / *Sub) -10/Subcaves (discovered 4 exits: [*Mat x2] / [*Rec] / *Scr) -8/Scraptown (discovered 1 exit: [*Fac]) History --------- Turn | Location | Event 19 | -11/Scrapyard | Discovered new exit (range 14) 75 | -11/Scrapyard | Entered Materials 76 | -10/Materials | Met a group of wandering Federalists 145 | -10/Materials | Discovered new exit (range 6) 317 | -10/Materials | Build established: Mutant 591 | -10/Materials | Discovered new exit (range 15) 732 | -10/Materials | Discovered new exit (range 10) 852 | -10/Materials | Discovered new exit (range 15) 990 | -10/Materials | Entered Mines 1010 | -10/Mines | Discovered new exit (range 5) 1020 | -10/Mines | Met a Derelict shopkeep closing up shop 1196 | -10/Mines | Found a hidden stash of uninstalled traps 1224 | -10/Mines | Deemed a non-threat by the Exiles lab entrance 1224 | -10/Mines | Discovered new exit (range 5) 1318 | -10/Mines | Learned location of 1 exit from Materials 1400 | -10/Mines | Discovered new exit (range 3) 1539 | -10/Mines | Learned location of Zion (-7) 1609 | -10/Mines | Found a Scrap Suit stashed away for nefarious purposes 1615 | -10/Mines | Found Scrap Suit 1637 | -10/Mines | Discovered new exit (range 5) 1671 | -10/Mines | Entered Subcaves 1672 | -10/Subcaves | Approached by a straggling Scientist 1697 | -10/Subcaves | Shifting Twisted Machinery released Flamer 1699 | -10/Subcaves | Shifting Twisted Machinery released Sub. Laser 1809 | -10/Subcaves | Core integrity fell below 50% 1848 | -10/Subcaves | Discovered new exit (range 10) 1874 | -10/Subcaves | Discovered new exit (range 10) 2026 | -10/Subcaves | Discovered new exit (range 12) 2565 | -10/Subcaves | Shifting Twisted Machinery released Sub. Monowheel 2614 | -10/Subcaves | Shifting Twisted Machinery released Shrapnel Trap 3157 | -10/Subcaves | Ambushed by angry Subdweller bent on revenge 3271 | -10/Subcaves | Visited 4L-MR0's lab 3284 | -10/Subcaves | Found Prototype Device 3284 | -10/Subcaves | Identified Sfc. Transmogrifier 3294 | -10/Subcaves | Found Gun Armor 3313 | -10/Subcaves | Core integrity fell below 20% 3607 | -10/Subcaves | Visited Clippyterm 3610 | -10/Subcaves | Learned Factory trap positions 3914 | -10/Subcaves | Identified exit to Scraptown 3970 | -10/Subcaves | Entered Scraptown 4053 | -8/Scraptown | Visited TADAMA 4093 | -8/Scraptown | Visited Bundlers 4128 | -8/Scraptown | Heard Great Nut preacher, LISTEN AND RECITE! 4196 | -8/Scraptown | Visited The Evicted 4268 | -8/Scraptown | Visited Shadow of the Wyrm 5184 | -8/Scraptown | Discovered new exit (range 7) 5509 | -8/Scraptown | Visited SPCMW 5601 | -8/Scraptown | Visited Comm Corps 5717 | -8/Scraptown | Visited Cyclists 5808 | -8/Scraptown | Visited UFD Registry 5808 | -8/Scraptown | Registered with UFD as "Nanothruster" 5914 | -8/Scraptown | Entered Cyclist Reading Room 6102 | -8/Scraptown | Visited Scrap Suit Storage 6202 | -8/Scraptown | Visited Scrapoid Pod Storage 6315 | -8/Scraptown | Visited Junk Repository 6580 | -8/Scraptown | Visited Analyses Database 6683 | -8/Scraptown | Met Optimus 6683 | -8/Scraptown | Accepted into 0bPrime 6802 | -8/Scraptown | Visited Infowarlord's Domain 6818 | -8/Scraptown | Found Exp. Signal Interpreter 6828 | -8/Scraptown | Civil war broke out across Scraptown 6872 | -8/Scraptown | Lost 3 allies 7056 | -8/Scraptown | Visited DA-N13 Charitable Foundation 7072 | -8/Scraptown | Found DCF Scrap (30 items) 7102 | -8/Scraptown | Lost 4 allies 7105 | -8/Scraptown | Destroyed by K2-79Z(j) with Overtuned Pulse Rifle Last Messages --------------- 07072_ Found Imp. Treads. 07072_ Found Arm. Wheel. 07072_ Found Reactive Plating. 07072_ Found Humpback. 07072_ Found Melee Analysis Suite. 07072_ Found Utility Shielding. 07072_ Found Mak. ECM Suite. 07072_ Found Imp. Weapon Shielding. 07072_ Found Bolt Gun. 07072_ Found Welding Torch. 07072_ Found Hvy. Assault Rifle. 07072_ Found Missile Launcher. 07072_ Found Hvy. Hammer. 07072_ Found Grenade Launcher. 07072_ Found Missile Launcher. 07072_ Found 126 Matter. 07104_ Penetrated by Bolt. 07105_ K2-79Z(j): "Can we win this? Even if we take Scraptown, they'll hit us from Junction 34." Map ----- +----------------------------------------------------+ | ?????????????????????????????????????????????????? | | ?????????????????????????????????????????????????? | | ?????????????????????????????????????????????????? | | ?????????????????????????????????????????????????? | | ?????????????????????????????????????????????????? | | ?????????????????????????????????????????????????? | | ?????????????????????????????????????????????????? | | ?????????????????????????????????????????????????? | | ?????????????????????????![#?????????????????????? | | ?????????????????????????!*=?????????????????????? | | ?????????????????????????!!%?????????????????????? | | ?????????????????????????=!!?????????????????????? | | ?????????????????????????==!?????????????????????? | | ?????????????????????????[j#?????????????????????? | | ?????????????????????????!j#?????????????????????? | | ????????????????????????#! #?????????????????????? | | ????????????????????????#!=%?????????????????????? | | ????????????????????????#=%#?###?????????????????? | | ????????????????????????#[%#?# #?????????????????? | | ????????????????????????#[[###"######????????????? | | ????????????????????????#=!# * ##**=#????????????? | | ????????????????????????;=%#%[!##[==#????????????? | | ????????????????????????#=!#!*]!!/%*#????????????? | | ????????????????????????#%!#[===!]]!#????????????? | | ????????????????????????#[!#!!%!*][*#????????????? | | ????????????????????????#@=#!*%==|[*#????????????? | | ??????????????????#????##! ##!=######????????????? | | ???????????????####%####!! ##%##???######????????? | | ????""" ?????!"!= ! """=%!""%"#??""" ""????????? | | ?? ???*%![% =[!%![%[[!=["#?? " """"???????? | | ? ????%!=![ =%! != !==!"#? "" ?????? | | ????**=!* !%!=[="##[! #????? | | ????!=!! ==!!% #"[%= "?????? | | ? ?????%[! ![===!=!% !* ""?????? | | ?"""""""?????"""""""""" %[ %[!!# """ ????????? | | ???"""""???????""""""""""!!%!%%##? """"??????????? | | ##### ######?????#####""=!= = #??? """??????????? | | ##????????#""= =#????##???????????? | | X"#????????#"*%! ###########???????? | | "" "" ##????????#" [ *!"## #???????? | | "" "" X"#??????###" ![!"## ! #???????? | | " " #########%#" =%=%"##!* * #???????? | | "" =! =!=%==! [=%! #???????? | | "" * [%!!!!* ! "## #???????? | | " " #########[=" "###########???????? | | "" "" ""#??????###"" "#?????????????????? | | "" "" ##????????#"" "#########?????????? | | X"#????????#"" "## """"#?????????? | | ##????????#"" "## """"#?????????? | | ##### ################"" % "## " "#?????????? | +----------------------------------------------------+ Best States ------------- Heat Dissipation 25 Energy Generation 25 Energy Capacity 350 Matter Stores 300 Matter Capacity 300 Sight Range 16 Terrain Scan Range 14 Terrain Scan Density 10 Armor Coverage 150 Core Shielding 20 Evasion (%) 55 Recoil Reduction 2 Item Schematics ----------------- None Robot Schematics ------------------ None Fabricated ------------ Nothing Repaired ---------- Nothing Studied --------- None Alien Tech Used ----------------- None Achievements -------------- Art Critic Bob, First Of His Name Civilization 2243 Do Not Disturb I Have A Map? Link The Feds Mistaken Identity Challenges ------------ None Game ------ Seed InterceptDispersalCloak Manual? 0 Play Time 00:55:07 Cumulative 454.9 hours Start 2026.07.18 @ 22:19:41 End 2026.07.18 @ 23:36:06 Sessions 3 Manual Loads 0 Difficulty Rogue Special Mode None Game No. 234 Rogue 230 Adventurer 0 Explorer 4 Win Type - Total 25 Types 9/1/2/5/1/2/3/1/1/0 Lore% 67 Gallery% 71 Achievement% 45 Wizard Run 0 Options --------- Layout 1 ASCII 0 Keyboard 0 Movement Mouse Keybinds 0 Fullscreen 1 Font 24/Smallcaps Map View 50x35 Zoom Use 0% Tactical HUD 1 Map Filters NONE Filters NONE Steam 1 RUN: 90e22432-d2e0-439d-88b3-985e91942cd6